fUST/lending_fUST_20260617
["ID","MTS","AMOUNT","RATE_DAILY","PERIOD"]
[425293057,1781655050000,-500.0,0.00019452,2]
[425293059,1781655050000,-504.67733584,0.00019452,2]
[425293061,1781655050000,-366.7880942,0.00019452,2]
[425293064,1781655050000,-505.77217399,0.00019452,2]
[425293060,1781655050000,-500.0,0.00019452,2]
[425293065,1781655050000,-500.0,0.00019452,2]
[425293062,1781655050000,-500.0,0.00019452,2]
[425293063,1781655050000,-500.0,0.00019452,2]
[425292998,1781655050000,-500.0,0.00019452,2]
[425293043,1781655050000,-500.0,0.00019452,2]
[425293034,1781655050000,-500.0,0.00019452,2]
[425292985,1781655050000,-500.0,0.00019452,2]
[425293038,1781655050000,-500.0,0.00019452,2]
[425293004,1781655050000,-500.0,0.00019452,2]
[425293035,1781655050000,-500.0,0.00019452,2]
[425293006,1781655050000,-500.0,0.00019452,2]
[425293011,1781655050000,-497.0443492,0.00019452,2]
[425293019,1781655050000,-208.32497253,0.00019452,2]
[425293012,1781655050000,-500.0,0.00019452,2]
[425293010,1781655050000,-587.00851424,0.00019452,2]
[425293014,1781655050000,-500.0,0.00019452,2]
[425293018,1781655050000,-506.09619297,0.00019452,2]
[425293015,1781655050000,-592.13220894,0.00019452,2]
[425293017,1781655050000,-500.0,0.00019452,2]
[425293016,1781655050000,-500.0,0.00019452,2]
[425293020,1781655050000,-500.0,0.00019452,2]
[425293029,1781655050000,-500.0,0.00019452,2]
[425293013,1781655050000,-500.0,0.00019452,2]
[425293030,1781655050000,-502.47047637,0.00019452,2]
[425293031,1781655050000,-500.0,0.00019452,2]
[425293046,1781655050000,-500.0,0.00019452,2]
[425293044,1781655050000,-500.0,0.00019452,2]
[425293033,1781655050000,-500.0,0.00019452,2]
[425293025,1781655050000,-500.0,0.00019452,2]
[425293026,1781655050000,-500.0,0.00019452,2]
[425293028,1781655050000,-1000.0,0.00019452,2]
[425293027,1781655050000,-758.26,0.00019452,2]
[425293024,1781655050000,-500.0,0.00019452,2]
[425293022,1781655050000,-509.02526647,0.00019452,2]
[425293021,1781655050000,-500.0,0.00019452,2]
[425293032,1781655050000,-500.0,0.00019452,2]
[425293023,1781655050000,-500.0,0.00019452,2]
[425293085,1781655051000,-500.0,0.00019452,2]
[425293092,1781655051000,-500.0,0.00019452,2]
[425293094,1781655051000,-500.0,0.00019452,2]
[425293086,1781655051000,-500.0,0.00019452,2]
[425293084,1781655051000,-500.0,0.00019452,2]
[425293091,1781655051000,-500.0,0.00019452,2]
[425293087,1781655051000,-500.0,0.00019452,2]
[425293101,1781655051000,-500.0,0.00019452,2]
[425293090,1781655051000,-500.0,0.00019452,2]
[425293089,1781655051000,-500.0,0.00019452,2]
[425293095,1781655051000,-500.0,0.00019452,2]
[425293098,1781655051000,-500.0,0.00019452,2]
[425293097,1781655051000,-500.0,0.00019452,2]
[425293093,1781655051000,-500.0,0.00019452,2]
[425293088,1781655051000,-500.0,0.00019452,2]
[425293083,1781655051000,-500.0,0.00019452,2]
[425293069,1781655051000,-500.0,0.00019452,2]
[425293078,1781655051000,-500.0,0.00019452,2]
[425293066,1781655051000,-500.0,0.00019452,2]
[425293067,1781655051000,-500.0,0.00019452,2]
[425293107,1781655051000,-500.0,0.00019452,2]
[425293068,1781655051000,-500.0,0.00019452,2]
[425293079,1781655051000,-500.0,0.00019452,2]
[425293081,1781655051000,-500.0,0.00019452,2]
[425293080,1781655051000,-500.0,0.00019452,2]
[425293070,1781655051000,-500.0,0.00019452,2]
[425293073,1781655051000,-500.0,0.00019452,2]
[425293074,1781655051000,-500.0,0.00019452,2]
[425293072,1781655051000,-500.0,0.00019452,2]
[425293075,1781655051000,-508.83061726,0.00019452,2]
[425293076,1781655051000,-500.0,0.00019452,2]
[425293077,1781655051000,-500.0,0.00019452,2]
[425293071,1781655051000,-500.0,0.00019452,2]
[425293082,1781655051000,-506.65925137,0.00019452,2]
[425293100,1781655051000,-500.0,0.00019452,2]
[425293110,1781655051000,-500.0,0.00019452,2]
[425293102,1781655051000,-500.0,0.00019452,2]
[425293122,1781655051000,-500.0,0.00019452,2]
[425293126,1781655051000,-662.07,0.00019537,2]
[425293124,1781655051000,-500.0,0.00019537,2]
[425293103,1781655051000,-500.0,0.00019452,2]
[425293127,1781655051000,-1556.16,0.00019537,2]
[425293133,1781655051000,-1898.03,0.00019538,2]
[425293132,1781655051000,-610.84,0.00019538,2]
[425293125,1781655051000,-856.72,0.00019537,2]
[425293129,1781655051000,-500.0,0.00019537,2]
[425293130,1781655051000,-591.11,0.00019537,2]
[425293123,1781655051000,-593.9576799,0.00019533,2]
[425293131,1781655051000,-964.92,0.00019537,2]
[425293134,1781655051000,-731.28,0.00019538,2]
[425293136,1781655051000,-1112.55485032,0.00019538,2]
[425293135,1781655051000,-500.0,0.00019538,2]
[425293114,1781655051000,-415.2409204,0.00019452,2]
[425293117,1781655051000,-500.0,0.00019452,2]
[425293128,1781655051000,-791.7,0.00019537,2]
[425293119,1781655051000,-500.0,0.00019452,2]
[425293108,1781655051000,-500.0,0.00019452,2]
[425293096,1781655051000,-500.0,0.00019452,2]
[425293116,1781655051000,-500.0,0.00019452,2]
[425293105,1781655051000,-500.0,0.00019452,2]
[425293106,1781655051000,-500.0,0.00019452,2]
[425293099,1781655051000,-500.0,0.00019452,2]
[425293121,1781655051000,-500.0,0.00019452,2]
[425293104,1781655051000,-365.22486042,0.00019452,2]
[425293109,1781655051000,-500.0,0.00019452,2]
[425293111,1781655051000,-500.0,0.00019452,2]
[425293112,1781655051000,-500.0,0.00019452,2]
[425293113,1781655051000,-500.0,0.00019452,2]
[425293118,1781655051000,-500.0,0.00019452,2]
[425293120,1781655051000,-500.0,0.00019452,2]
[425293115,1781655051000,-500.0,0.00019452,2]
[425293142,1781655128000,243.14965934,0.0001,7]
[425293143,1781655129000,243.14965934,0.000102,7]
[425293146,1781655552000,-243.14965934,0.000105,7]
[425293147,1781655564000,152.0,0.00010201,7]
[425293150,1781655832000,301.88574124,0.00023917,30]
[425293149,1781655832000,3091.7820919,0.00023917,30]
[425293151,1781655891000,5000.0,0.00011,13]
[425293152,1781655920000,280.9305792,0.00023364,120]
[425293155,1781656109000,1452.08766105,0.00011,13]
[425293194,1781656232000,-243.14965934,0.000112,7]
[425293192,1781656232000,-243.14965934,0.000108,7]
[425293197,1781656232000,-245.42894861,0.00013567,2]
[425293203,1781656232000,-410.93143287,0.00013567,2]
[425293201,1781656232000,-392.07976699,0.00013567,2]
[425293205,1781656232000,-4117.84546058,0.00013567,2]
[425293196,1781656232000,-150.42627213,0.000118,2]
[425293319,1781656238000,-805.424147,0.00014861,2]
[425293320,1781656238000,-162.261836,0.00015068,2]
[425293316,1781656238000,-300.0,0.00013837,2]
[425293317,1781656238000,-250.0,0.0001427,2]
[425293318,1781656238000,-685.775025,0.00014433,2]
[425293315,1781656238000,-300.0,0.00013837,2]
[425293314,1781656238000,-300.0,0.00013837,2]
[425293313,1781656238000,-300.0,0.00013837,2]
[425293311,1781656238000,-300.0,0.00013837,2]
[425293322,1781656238000,-600.0,0.00015795,2]
[425293312,1781656238000,-300.0,0.00013837,2]
[425293306,1781656238000,-300.0,0.00013837,2]
[425293301,1781656238000,-1047.28117507,0.00013567,2]
[425293305,1781656238000,-300.0,0.00013837,2]
[425293302,1781656238000,-300.0,0.00013837,2]
[425293309,1781656238000,-300.0,0.00013837,2]
[425293304,1781656238000,-300.0,0.00013837,2]
[425293307,1781656238000,-300.0,0.00013837,2]
[425293303,1781656238000,-300.0,0.00013837,2]
[425293308,1781656238000,-300.0,0.00013837,2]
[425293310,1781656238000,-300.0,0.00013837,2]
[425293299,1781656238000,-557.93531868,0.00013567,2]
[425293321,1781656238000,-805.424147,0.00015486,2]
[425293323,1781656238000,-805.424147,0.00016112,2]
[425293338,1781656238000,-500.0,0.00016438,2]
[425293327,1781656238000,-555.7,0.00016438,2]
[425293345,1781656238000,-500.0,0.00016438,2]
[425293348,1781656238000,-8490.15682404,0.000165,2]
[425293346,1781656238000,-507.16324365,0.00016438,2]
[425293344,1781656238000,-420.97045796,0.00016438,2]
[425293342,1781656238000,-500.0,0.00016438,2]
[425293340,1781656238000,-949.02,0.00016438,2]
[425293341,1781656238000,-500.0,0.00016438,2]
[425293339,1781656238000,-778.08,0.00016438,2]
[425293326,1781656238000,-500.0,0.00016438,2]
[425293337,1781656238000,-500.0,0.00016438,2]
[425293347,1781656238000,-500.0,0.00016438,2]
[425293335,1781656238000,-886.79,0.00016438,2]
[425293336,1781656238000,-623.39,0.00016438,2]
[425293328,1781656238000,-697.38,0.00016438,2]
[425293325,1781656238000,-500.0,0.00016438,2]
[425293329,1781656238000,-500.0,0.00016438,2]
[425293330,1781656238000,-500.0,0.00016438,2]
[425293343,1781656238000,-500.0,0.00016438,2]
[425293332,1781656238000,-616.53,0.00016438,2]
[425293331,1781656238000,-266.32,0.00016438,2]
[425293333,1781656238000,-500.0,0.00016438,2]
[425293324,1781656238000,-500.0,0.00016438,2]
[425293334,1781656238000,-500.0,0.00016438,2]
[425293426,1781656244000,-500.0,0.00016438,2]
[425293427,1781656244000,-1279.32204679,0.000165,2]
[425293466,1781656244000,-500.0,0.00016521,2]
[425293468,1781656244000,-500.0,0.00016521,2]
[425293470,1781656244000,-79.87803342,0.00016521,2]
[425293462,1781656244000,-500.0,0.00016521,2]
[425293464,1781656244000,-500.0,0.00016521,2]
[425293460,1781656244000,-2475.43460507,0.000165,2]
[425293736,1781656247000,-35.84766105,0.00016521,2]
[425293735,1781656247000,-266.15233895,0.00016438,2]
[425293712,1781656247000,-650.08766105,0.00016438,2]
[425293710,1781656247000,-500.0,0.00016438,2]
[425294038,1781656291000,-1000.0,0.00015636,2]
[425294039,1781656308000,-328.77080916,0.00016438,2]
[425294040,1781656545000,152.0,0.00010207,7]
[425294114,1781657432000,-243.41862376,0.00016437,2]
[425294123,1781657432000,-500.0,0.00016438,2]
[425294129,1781657432000,-500.0,0.00016438,2]
[425294127,1781657432000,-500.0,0.00016438,2]
[425294134,1781657432000,-500.0,0.00016438,2]
[425294132,1781657432000,-500.0,0.00016438,2]
[425294107,1781657432000,-4558.40452391,0.00016338,2]
[425294085,1781657432000,-151.0,0.00013115,2]
[425294141,1781657432000,-500.0,0.00016438,2]
[425294140,1781657432000,-500.0,0.00016438,2]
[425294137,1781657432000,-500.0,0.00016438,2]
[425294144,1781657432000,-500.0,0.00016438,2]
[425294135,1781657432000,-500.0,0.00016438,2]
[425294142,1781657432000,-500.0,0.00016438,2]
[425294125,1781657432000,-500.0,0.00016438,2]
[425294130,1781657432000,-500.0,0.00016438,2]
[425294089,1781657432000,-166.66666668,0.0001427,2]
[425294111,1781657432000,-155.57524355,0.00016437,2]
[425294083,1781657432000,-703.49973567,0.00012984,2]
[425294093,1781657432000,-170.654399,0.00015119,2]
[425294139,1781657432000,-500.0,0.00016438,2]
[425294091,1781657432000,-183.1585807,0.00014805,2]
[425294087,1781657432000,-156.49650075,0.00013115,2]
[425294095,1781657432000,-766.485781,0.00015248,2]
[425294118,1781657432000,-500.0,0.00016438,2]
[425294099,1781657432000,-166.66666666,0.00015304,2]
[425294101,1781657432000,-151.32086958,0.00015369,2]
[425294116,1781657432000,-500.0,0.00016438,2]
[425294105,1781657432000,-157.71973597,0.00016338,2]
[425294109,1781657432000,-166.66666666,0.00016338,2]
[425294121,1781657432000,-500.0,0.00016438,2]
[425294097,1781657432000,-1187.4325772,0.00015267,2]
[425294103,1781657432000,-173.1320638,0.00015605,2]
[425294143,1781657432000,-500.0,0.00016438,2]
[425294157,1781657432000,-500.0,0.00016438,2]
[425294149,1781657432000,-500.0,0.00016438,2]
[425294163,1781657432000,-500.0,0.00016438,2]
[425294164,1781657432000,-500.0,0.00016438,2]
[425294162,1781657432000,-500.0,0.00016438,2]
[425294169,1781657432000,-427.65921703,0.00016438,2]
[425294170,1781657432000,-72.34078297,0.00016438,2]
[425294173,1781657432000,-500.0,0.00016438,2]
[425294148,1781657432000,-500.0,0.00016438,2]
[425294172,1781657432000,-122.73142624,0.00016438,2]
[425294171,1781657432000,-377.26857376,0.00016438,2]
[425294176,1781657432000,-500.0,0.00016438,2]
[425294175,1781657432000,-500.0,0.00016438,2]
[425294180,1781657432000,-364.38175051,0.00016438,2]
[425294179,1781657432000,-500.0,0.00016438,2]
[425294178,1781657432000,-500.0,0.00016438,2]
[425294174,1781657432000,-500.0,0.00016438,2]
[425294155,1781657432000,-506.01255067,0.00016438,2]
[425294165,1781657432000,-500.0,0.00016438,2]
[425294160,1781657432000,-500.0,0.00016438,2]
[425294145,1781657432000,-500.0,0.00016438,2]
[425294146,1781657432000,-504.84017903,0.00016438,2]
[425294154,1781657432000,-349.52662716,0.00016438,2]
[425294147,1781657432000,-500.0,0.00016438,2]
[425294150,1781657432000,-500.0,0.00016438,2]
[425294168,1781657432000,-500.0,0.00016438,2]
[425294151,1781657432000,-500.0,0.00016438,2]
[425294152,1781657432000,-500.0,0.00016438,2]
[425294156,1781657432000,-500.0,0.00016438,2]
[425294166,1781657432000,-500.0,0.00016438,2]
[425294167,1781657432000,-505.28136694,0.00016438,2]
[425294161,1781657432000,-500.0,0.00016438,2]
[425294159,1781657432000,-500.0,0.00016438,2]
[425294158,1781657432000,-500.0,0.00016438,2]
[425294153,1781657432000,-500.0,0.00016438,2]
[425294177,1781657432000,-500.0,0.00016438,2]
[425294181,1781657433000,-309.56500607,0.00016438,2]
[425294240,1781657438000,-510.65048149,0.00016438,2]
[425294241,1781657438000,-161.36053673,0.00016438,2]
[425294239,1781657438000,-500.0,0.00016438,2]
[425294216,1781657438000,-500.0,0.00016438,2]
[425294214,1781657438000,-500.0,0.00016438,2]
[425294198,1781657438000,-500.0,0.00016438,2]
[425294210,1781657438000,-500.0,0.00016438,2]
[425294213,1781657438000,-500.0,0.00016438,2]
[425294199,1781657438000,-500.0,0.00016438,2]
[425294195,1781657438000,-506.92711022,0.00016438,2]
[425294201,1781657438000,-500.0,0.00016438,2]
[425294190,1781657438000,-270.43474128,0.00016438,2]
[425294192,1781657438000,-500.0,0.00016438,2]
[425294194,1781657438000,-500.0,0.00016438,2]
[425294197,1781657438000,-500.0,0.00016438,2]
[425294185,1781657438000,-229.56525872,0.00016438,2]
[425294184,1781657438000,-500.0,0.00016438,2]
[425294183,1781657438000,-198.49567221,0.00016438,2]
[425294237,1781657438000,-726.69,0.00016438,2]
[425294193,1781657438000,-695.07,0.00016438,2]
[425294200,1781657438000,-500.0,0.00016438,2]
[425294196,1781657438000,-500.0,0.00016438,2]
[425294207,1781657438000,-500.0,0.00016438,2]
[425294204,1781657438000,-500.0,0.00016438,2]
[425294236,1781657438000,-500.0,0.00016438,2]
[425294235,1781657438000,-500.0,0.00016438,2]
[425294234,1781657438000,-500.0,0.00016438,2]
[425294232,1781657438000,-500.0,0.00016438,2]
[425294231,1781657438000,-500.0,0.00016438,2]
[425294233,1781657438000,-500.0,0.00016438,2]
[425294230,1781657438000,-500.0,0.00016438,2]
[425294238,1781657438000,-500.0,0.00016438,2]
[425294228,1781657438000,-500.0,0.00016438,2]
[425294229,1781657438000,-500.0,0.00016438,2]
[425294225,1781657438000,-500.0,0.00016438,2]
[425294223,1781657438000,-500.0,0.00016438,2]
[425294221,1781657438000,-500.0,0.00016438,2]
[425294220,1781657438000,-500.0,0.00016438,2]
[425294227,1781657438000,-500.0,0.00016438,2]
[425294218,1781657438000,-500.0,0.00016438,2]
[425294258,1781657439000,-500.0,0.00016438,2]
[425294259,1781657439000,-500.0,0.00016438,2]
[425294256,1781657439000,-507.36627683,0.00016438,2]
[425294262,1781657439000,-500.0,0.00016438,2]
[425294254,1781657439000,-500.0,0.00016438,2]
[425294274,1781657439000,-500.0,0.00016438,2]
[425294264,1781657439000,-500.0,0.00016438,2]
[425294275,1781657439000,-500.0,0.00016438,2]
[425294265,1781657439000,-500.0,0.00016438,2]
[425294261,1781657439000,-500.0,0.00016438,2]
[425294263,1781657439000,-500.0,0.00016438,2]
[425294257,1781657439000,-500.0,0.00016438,2]
[425294260,1781657439000,-500.0,0.00016438,2]
[425294244,1781657439000,-500.0,0.00016438,2]
[425294255,1781657439000,-500.0,0.00016438,2]
[425294249,1781657439000,-507.43024099,0.00016438,2]
[425294246,1781657439000,-500.0,0.00016438,2]
[425294248,1781657439000,-500.0,0.00016438,2]
[425294250,1781657439000,-500.0,0.00016438,2]
[425294247,1781657439000,-500.0,0.00016438,2]
[425294245,1781657439000,-500.0,0.00016438,2]
[425294243,1781657439000,-500.0,0.00016438,2]
[425294242,1781657439000,-500.0,0.00016438,2]
[425294252,1781657439000,-500.0,0.00016438,2]
[425294251,1781657439000,-500.0,0.00016438,2]
[425294268,1781657439000,-500.0,0.00016438,2]
[425294253,1781657439000,-500.0,0.00016438,2]
[425294273,1781657439000,-505.03604134,0.00016438,2]
[425294266,1781657439000,-252.27632289,0.00016438,2]
[425294267,1781657439000,-500.0,0.00016438,2]
[425294272,1781657439000,-500.0,0.00016438,2]
[425294296,1781657439000,-668.32,0.00016438,2]
[425294295,1781657439000,-1000.0,0.00016438,2]
[425294298,1781657439000,-353.15108637,0.00016438,2]
[425294289,1781657439000,-500.0,0.00016438,2]
[425294291,1781657439000,-500.0,0.00016438,2]
[425294297,1781657439000,-509.96715364,0.00016438,2]
[425294293,1781657439000,-500.0,0.00016438,2]
[425294299,1781657439000,-1388.48679433,0.00016438,2]
[425294292,1781657439000,-500.0,0.00016438,2]
[425294288,1781657439000,-500.0,0.00016438,2]
[425294286,1781657439000,-500.0,0.00016438,2]
[425294285,1781657439000,-500.0,0.00016438,2]
[425294290,1781657439000,-500.0,0.00016438,2]
[425294279,1781657439000,-500.0,0.00016438,2]
[425294294,1781657439000,-532.55,0.00016438,2]
[425294269,1781657439000,-500.0,0.00016438,2]
[425294282,1781657439000,-508.96216643,0.00016438,2]
[425294271,1781657439000,-500.0,0.00016438,2]
[425294277,1781657439000,-500.0,0.00016438,2]
[425294287,1781657439000,-500.0,0.00016438,2]
[425294270,1781657439000,-500.0,0.00016438,2]
[425294280,1781657439000,-159.28667708,0.00016438,2]
[425294281,1781657439000,-500.0,0.00016438,2]
[425294278,1781657439000,-500.0,0.00016438,2]
[425294283,1781657439000,-500.0,0.00016438,2]
[425294284,1781657439000,-505.50884606,0.00016438,2]
[425294276,1781657439000,-500.0,0.00016438,2]
[425294347,1781657443000,-156.35299684,0.00016438,2]
[425294925,1781657655000,15000.0,0.00024,120]
[425294930,1781657720000,210.34449292,0.00023149,60]
[425294961,1781658550000,805.0,0.00024658,120]
[425295136,1781658638000,-280.19942703,0.000125,2]
[425295133,1781658638000,-151.0,0.00012028,2]
[425295132,1781658638000,-1308.89766777,0.00011908,13]
[425295134,1781658638000,-156.0,0.000124,2]
[425295135,1781658638000,-392.07976699,0.000124,2]
[425295141,1781658638000,-170.39303664,0.00016337,2]
[425295137,1781658638000,-515.98509,0.00014709,2]
[425295139,1781658638000,-170.654399,0.00015413,2]
[425295140,1781658638000,-10080.6934249,0.00015536,2]
[425295142,1781658638000,-603489.93405296,0.00016338,2]
[425295138,1781658638000,-9239.56997586,0.00015,2]
[425295890,1781659820000,153.0,0.0002,120]
[425295891,1781659821000,153.0,0.000229,120]
[425295892,1781659824000,150.18912499,0.00023431,120]
[425295963,1781659831000,-3420.30753107,0.00014072,2]
[425295961,1781659831000,-1579.69246893,0.00013931,2]
[425296383,1781659838000,-500.0,0.00015936,2]
[425296385,1781659838000,-623.88230932,0.00015936,2]
[425296389,1781659838000,-500.0,0.00015936,2]
[425296393,1781659838000,-500.0,0.00015936,2]
[425296396,1781659838000,-500.0,0.00015936,2]
[425296391,1781659838000,-500.0,0.00015936,2]
[425296379,1781659838000,-500.0,0.00015535,2]
[425296387,1781659838000,-500.0,0.00015936,2]
[425296378,1781659838000,-1000.0,0.00015085,2]
[425296372,1781659838000,-3555.901307,0.00014958,2]
[425296374,1781659838000,-300.0,0.00015029,2]
[425296381,1781659838000,-357.46588712,0.00015844,2]
[425296368,1781659838000,-300.0,0.00014735,2]
[425296376,1781659838000,-175.548099,0.00015068,2]
[425296361,1781659838000,-170.14117399,0.00013931,2]
[425296366,1781659838000,-387.975178,0.00014649,2]
[425296364,1781659838000,-162.22136501,0.00014299,2]
[425296362,1781659838000,-1579.69246893,0.00014072,2]
[425296405,1781659838000,-500.0,0.00015936,2]
[425296370,1781659838000,-6485.0005758,0.00014736,2]
[425296395,1781659838000,-500.0,0.00015936,2]
[425296421,1781659838000,-500.0,0.00015936,2]
[425296403,1781659838000,-500.0,0.00015936,2]
[425296461,1781659838000,-823.16107044,0.00015938,2]
[425296447,1781659838000,-2934.60582529,0.00015938,2]
[425296442,1781659838000,-241.44845005,0.00015937,2]
[425296444,1781659838000,-1575765.21241159,0.00015938,2]
[425296439,1781659838000,-177.909,0.00015937,2]
[425296437,1781659838000,-500.0,0.00015936,2]
[425296434,1781659838000,-500.0,0.00015936,2]
[425296431,1781659838000,-500.0,0.00015936,2]
[425296429,1781659838000,-500.0,0.00015936,2]
[425296450,1781659838000,-180296.03273458,0.00015938,2]
[425296463,1781659838000,-1477.8415112,0.00015938,2]
[425296424,1781659838000,-500.0,0.00015936,2]
[425296399,1781659838000,-500.0,0.00015936,2]
[425296406,1781659838000,-500.0,0.00015936,2]
[425296408,1781659838000,-290.58730296,0.00015936,2]
[425296401,1781659838000,-532.2425931,0.00015936,2]
[425296410,1781659838000,-500.0,0.00015936,2]
[425296414,1781659838000,-500.0,0.00015936,2]
[425296412,1781659838000,-500.0,0.00015936,2]
[425296426,1781659838000,-500.0,0.00015936,2]
[425296713,1781659840000,-6085.88211101,0.00015938,2]
[425296691,1781659840000,-671.77936835,0.00015938,2]
[425296784,1781659843000,-26.49312806,0.00015938,2]
[425296780,1781659843000,-934.50856794,0.00015838,2]
[425296785,1781659843000,-485.7107963,0.00015938,2]
[425296782,1781659843000,-187.2833029,0.00015919,2]
[425296792,1781659843000,-21321.20111533,0.00015938,2]
[425296804,1781659846000,-113034.9980883,0.00015938,2]
[425296802,1781659846000,-634.15005767,0.00015938,2]
[425296801,1781659846000,-494.293216,0.00015938,2]
[425296803,1781659846000,-1585.68992899,0.00015938,2]
[425296809,1781659850000,152.0,0.00010205,7]
[425296810,1781659850000,152.0,0.00010208,7]
[425296811,1781659889000,-1024.77080916,0.00015779,2]
[425296812,1781659906000,-304.0,0.00015779,2]
[425296819,1781660392000,774.32067191,0.00023361,120]
[425296820,1781660420000,3190.2486188,0.00011,13]
[425296823,1781660760000,154.0,0.0002,120]
[425296824,1781660781000,462.0,0.00024657,120]
[425296825,1781660803000,5000.0,0.000102,6]
[425296826,1781660825000,4709.64966979,0.000102,6]
[425296827,1781660839000,109.27550708,0.00023424,30]
[425296828,1781660839000,243.03193311,0.00023424,30]
[425296829,1781660952000,-301.85923734,9.323e-05,9]
[425296834,1781661031000,-208.78508219,9.323e-05,9]
[425296835,1781661031000,-993.27453828,9.417e-05,9]
[425296837,1781661031000,-151.0,9.902e-05,2]
[425296836,1781661031000,-5000.0,9.803e-05,2]
[425296838,1781661031000,-251.80213016,0.0001,2]
[425296840,1781661031000,-155.19355591,0.00010512,2]
[425296841,1781661031000,-924.1266036,0.00011529,2]
[425296842,1781661031000,-1007.5443032,0.00011656,2]
[425296839,1781661031000,-152.0,0.00010208,7]
[425296856,1781661032000,-1000.0,0.00013699,2]
[425296862,1781661032000,-324.03196772,0.00013972,2]
[425296853,1781661032000,-194.935867,0.00013699,2]
[425296848,1781661032000,-996.82324628,0.00013531,2]
[425296843,1781661032000,-2253.436444,0.0001248,2]
[425296845,1781661032000,-300.0,0.0001353,2]
[425296861,1781661032000,-500.0,0.00013972,2]
[425296849,1781661032000,-349.88672614,0.00013584,2]
[425296846,1781661032000,-795.61456635,0.00013531,2]
[425296847,1781661032000,-460.99863137,0.00013531,2]
[425296851,1781661032000,-399.47067362,0.00013584,2]
[425296844,1781661032000,-2253.436444,0.00013005,2]
[425296860,1781661032000,-500.0,0.00013972,2]
[425296872,1781661032000,-433.45811007,0.00013973,2]
[425296857,1781661032000,-500.0,0.00013972,2]
[425296873,1781661032000,-598.70512035,0.00013973,2]
[425296868,1781661032000,-508.69616474,0.00013973,2]
[425296871,1781661032000,-4305.7675922,0.00013973,2]
[425296874,1781661032000,-3267.31301046,0.00013973,2]
[425296867,1781661032000,-500.0,0.00013972,2]
[425296870,1781661032000,-500.0,0.00013973,2]
[425296865,1781661032000,-500.0,0.00013972,2]
[425296869,1781661032000,-500.0,0.00013973,2]
[425296859,1781661032000,-500.0,0.00013972,2]
[425296858,1781661032000,-254.1839368,0.00013972,2]
[425296864,1781661032000,-272.9022626,0.00013972,2]
[425296866,1781661032000,-390.43809676,0.00013972,2]
[425296863,1781661032000,-500.0,0.00013972,2]
[425297027,1781661039000,-2413.51318575,0.00013834,2]
[425297028,1781661039000,-2514.09407606,0.00013973,2]
[425297035,1781661040000,-5180.09590182,0.00013973,2]
[425297034,1781661040000,-2563.93816376,0.00013973,2]
[425297042,1781661045000,-1020.29038811,0.00013973,2]
[425297048,1781661046000,-6100.07866982,0.00013973,2]
[425297054,1781661213000,183.763406,0.000246,120]
[425297057,1781661312000,171.626996,0.00013751,120]
[425297060,1781661385000,603.4966341,0.0002336,30]
[425297061,1781661446000,1134.41236219,0.0002336,60]
[425297063,1781661617000,1379.13,0.000235,30]
[425297064,1781661653000,-881.85638781,0.00010653,9]
[425297066,1781661762000,152.0,0.00023506,30]
[425297067,1781661830000,23198.0,0.00023364,30]